bitfinex-derivatives/quotes_BTCF0:USTF0_20241214
["timestamp","ask_amount","ask_price","bid_price","bid_amount"]
[1734169871457,0.73691099,101560.0,101550.0,0.04359176]
[1734169871661,0.73691099,101560.0,101550.0,0.0005]
[1734169871662,0.61936801,101560.0,101550.0,0.0005]
[1734169871859,0.049234,101550.0,101540.0,2.47115889]
[1734169872057,0.25493201,101550.0,101540.0,2.51425112]
[1734169872263,0.25624966,101550.0,101540.0,2.51425112]
[1734169872866,0.16809337,101550.0,101540.0,2.60845112]
[1734169873057,0.16809337,101550.0,101540.0,2.55921512]
[1734169873567,0.22921626,101550.0,101540.0,2.55921512]
[1734169874672,0.16809337,101550.0,101540.0,2.60845412]
[1734169875952,0.31499184,101550.0,101540.0,2.60845412]
[1734169876357,0.16809337,101550.0,101540.0,2.60845412]
[1734169876755,0.25627337,101550.0,101540.0,2.60845412]
[1734169876965,0.16809337,101550.0,101540.0,2.60845412]
[1734169877558,0.31499184,101550.0,101540.0,2.60845412]
[1734169877766,0.31499184,101550.0,101540.0,2.60895412]
[1734169878662,0.16809337,101550.0,101540.0,2.60895412]
[1734169878967,0.16809337,101550.0,101540.0,2.60845412]
[1734169879167,0.31499184,101550.0,101540.0,2.60845412]
[1734169879368,0.16809337,101550.0,101540.0,2.60845412]
[1734169879561,0.31499184,101550.0,101540.0,2.60845412]
[1734169879758,0.31499184,101550.0,101540.0,2.60895412]
[1734169879967,0.16809337,101550.0,101540.0,2.60895412]
[1734169880670,0.25629634,101550.0,101540.0,2.60895412]
[1734169880871,0.16809337,101550.0,101540.0,2.60895412]
[1734169882065,0.31499184,101550.0,101540.0,2.60895412]
[1734169882363,0.16809337,101550.0,101540.0,2.60895412]
[1734169883361,0.22932377,101550.0,101540.0,2.49859223]
[1734169883562,0.37622224,101550.0,101540.0,2.49859223]
[1734169883768,0.37622224,101550.0,101540.0,2.49809223]
[1734169884770,0.37622224,101550.0,101540.0,2.55921512]
[1734169885867,0.31509935,101550.0,101540.0,2.49809223]
[1734169886069,0.31509935,101550.0,101540.0,2.55921512]
[1734169886577,0.37622224,101550.0,101540.0,0.99809223]
[1734169888863,0.38618819,101550.0,101540.0,0.99809223]
[1734169889770,0.38618819,101550.0,101540.0,0.96669223]
[1734169891670,0.38618819,101550.0,101540.0,0.93609223]
[1734169894074,0.26864647,101550.0,101540.0,0.93609223]
[1734169894674,0.80613852,101550.0,101540.0,0.07529223]
[1734169895179,0.29844005,101550.0,101540.0,0.07529223]
[1734169895578,0.72036294,101550.0,101540.0,0.04309223]
[1734169895878,0.69154005,101550.0,101540.0,0.04309223]
[1734169896176,0.72164005,101550.0,101540.0,0.04309223]
[1734169898674,0.36084005,101550.0,101540.0,0.04309223]
[1734169898869,0.72164005,101550.0,101540.0,0.04309223]
[1734169899275,0.66051716,101550.0,101540.0,0.04309223]
[1734169899478,0.72164005,101550.0,101540.0,0.04309223]
[1734169899780,0.33074005,101550.0,101540.0,0.04309223]
[1734169899975,0.30121663,101550.0,101540.0,0.04309223]
[1734169900171,0.049239,101540.0,101530.0,2.6264976]
[1734169900378,0.16697621,101540.0,101530.0,2.53416289]
[1734169901181,0.16829386,101540.0,101530.0,2.53416289]
[1734169901683,0.16829386,101540.0,101530.0,2.17336289]
[1734169901874,0.16829386,101540.0,101530.0,2.53416289]
[1734169902876,0.22941675,101540.0,101530.0,0.97304]
[1734169903075,0.37657428,101540.0,101530.0,0.61224]
[1734169903278,0.37657428,101540.0,101530.0,1.0161368]
[1734169903477,0.37656604,101540.0,101530.0,1.0161368]
[1734169903877,0.37656604,101540.0,101530.0,1.07725969]
[1734169904683,0.37656604,101540.0,101530.0,0.71645969]
[1734169905388,0.31544315,101540.0,101530.0,0.71645969]
[1734169905688,0.31544315,101540.0,101530.0,1.07725969]
[1734169911083,0.16827452,101540.0,101530.0,1.07725969]
[1734169913888,0.16822646,101540.0,101530.0,1.07725969]
[1734169914393,0.16822646,101540.0,101530.0,1.03416289]
[1734169915092,0.16822646,101540.0,101530.0,0.67336289]
[1734169915392,0.16822646,101540.0,101530.0,1.07725837]
[1734169915984,0.31531373,101540.0,101530.0,1.07725837]
[1734169917895,0.26607473,101540.0,101530.0,1.07725837]
[1734169919783,0.14840492,101540.0,101530.0,1.09528578]
[1734169919984,0.20733575,101540.0,101530.0,1.13837727]
[1734169920190,0.08961205,101540.0,101530.0,1.13837727]
[1734169920494,0.08961205,101540.0,101530.0,2.63837727]
[1734169921893,0.08961205,101540.0,101530.0,2.51613149]
[1734169922194,0.08961205,101540.0,101530.0,2.63837727]
[1734169923798,0.08961205,101540.0,101530.0,2.93837727]
[1734169923997,0.00131765,101540.0,101530.0,2.93837727]
[1734169924799,0.20612561,101550.0,101530.0,2.93837727]
[1734169925000,0.20612561,101550.0,101540.0,0.56498478]
[1734169925303,0.1177237,101560.0,101550.0,0.549234]
[1734169925498,0.14708727,101570.0,101550.0,0.549234]
[1734169925499,0.1177237,101570.0,101550.0,1.09787978]
[1734169925689,0.1177237,101570.0,101560.0,0.62609767]
[1734169925895,0.1177237,101580.0,101570.0,0.049224]
[1734169926095,0.1177237,101580.0,101570.0,1.14106127]
[1734169926398,9.108e-05,101580.0,101570.0,0.64106127]
[1734169926603,9.108e-05,101580.0,101570.0,1.14106127]
[1734169928406,9.108e-05,101580.0,101570.0,1.44106127]
[1734169929403,0.00147719,101590.0,101570.0,1.50218416]
[1734169929599,0.00147719,101590.0,101580.0,0.62508767]
[1734169929794,0.1177237,101610.0,101600.0,0.04921]
[1734169930005,0.1177237,101610.0,101600.0,0.41001]
[1734169930208,0.44678164,101620.0,101600.0,0.41001]
[1734169930209,0.50338245,101620.0,101600.0,1.03225578]
[1734169930504,0.23857148,101620.0,101610.0,0.11032789]
[1734169930702,0.35629518,101620.0,101610.0,0.11032789]
[1734169931209,0.23857148,101620.0,101610.0,0.11032789]
[1734169932398,0.18936948,101620.0,101610.0,0.11032789]
[1734169932608,0.10682432,101620.0,101610.0,0.11032789]
[1734169933008,0.10682432,101620.0,101610.0,0.47112789]
[1734169933201,0.10682432,101620.0,101610.0,0.11032789]
[1734169933400,0.15602432,101620.0,101610.0,0.11032789]
[1734169934109,0.53603336,101620.0,101610.0,0.11032789]
[1734169934312,0.17523336,101620.0,101610.0,0.11032789]
[1734169935710,0.12603336,101620.0,101610.0,0.11032789]
[1734169936313,0.12603336,101620.0,101610.0,0.47112789]
[1734169936513,0.12603336,101620.0,101610.0,0.11032789]
[1734169936811,0.12603336,101620.0,101610.0,0.47112789]
[1734169936812,0.10682432,101620.0,101610.0,0.47112789]
[1734169940011,0.10732432,101620.0,101610.0,0.47112789]
[1734169940808,0.0976,101620.0,101610.0,0.47112789]
[1734169944510,0.0976,101620.0,101610.0,0.11032789]
[1734169944712,0.0976,101620.0,101610.0,0.47112789]
[1734169945406,0.0976,101620.0,101610.0,0.11032789]
[1734169945606,0.0976,101620.0,101610.0,0.47112789]
[1734169946814,0.1468,101620.0,101610.0,0.47112789]
[1734169947114,0.049205,101610.0,101600.0,0.00064]
[1734169947315,0.04921,101600.0,101590.0,0.049212]
[1734169947518,0.0312,101600.0,101590.0,0.53225778]
[1734169947816,0.0312,101600.0,101590.0,0.11033489]
[1734169948113,0.08041,101600.0,101590.0,0.47113489]
[1734169948711,0.08041,101600.0,101590.0,0.410012]
[1734169948916,0.14521,101600.0,101590.0,0.47113489]
[1734169949621,0.26217572,101600.0,101590.0,0.47113489]
[1734169952412,0.22927572,101600.0,101590.0,0.47113489]
[1734169953117,0.22927572,101600.0,101590.0,1.97113489]
[1734169953313,0.37636299,101600.0,101590.0,1.97113489]
[1734169953513,0.22927572,101600.0,101590.0,1.97113489]
[1734169953916,0.14816572,101600.0,101590.0,1.97113489]
[1734169954320,0.29576025,101600.0,101590.0,2.00333489]
[1734169954716,0.14867298,101600.0,101590.0,2.00333489]
[1734169955216,0.17828727,101600.0,101590.0,2.00333489]
[1734169955414,0.14708727,101600.0,101590.0,2.03363489]
[1734169957518,0.26470763,101600.0,101590.0,2.07670285]
[1734169957919,0.14708727,101600.0,101590.0,2.13782574]
[1734169958116,0.14708727,101600.0,101590.0,0.63782574]
[1734169958521,0.14708727,101600.0,101590.0,0.57670285]
[1734169959422,0.14708727,101600.0,101590.0,0.63782574]
[1734169959423,0.2647177,101600.0,101590.0,0.63782574]
[1734169959619,0.14708727,101600.0,101590.0,0.63782574]
[1734169959923,0.26471815,101600.0,101590.0,1.07670285]
[1734169960326,0.26471815,101600.0,101590.0,1.13782574]
[1734169961526,0.26471815,101600.0,101590.0,1.09475778]
[1734169961824,0.2059727,101610.0,101600.0,0.04921]
[1734169962024,0.2059727,101610.0,101600.0,0.17145578]
[1734169962412,0.2259337,101610.0,101600.0,0.04921]
[1734169962617,0.2259337,101610.0,101600.0,0.11033289]
[1734169962917,0.22588742,101610.0,101600.0,0.11033289]
[1734169963324,0.07884643,101610.0,101600.0,0.11033289]
[1734169964430,0.22589355,101610.0,101600.0,0.11033289]
[1734169965129,0.22590339,101610.0,101600.0,0.11033289]
[1734169965720,0.22590339,101610.0,101600.0,0.17145578]
[1734169965721,0.25535115,101610.0,101600.0,0.17145578]
[1734169966024,0.25535115,101610.0,101600.0,0.11033289]
[1734169966235,0.25535115,101610.0,101600.0,0.06112289]
[1734169966823,0.25535115,101610.0,101600.0,0.11033289]
[1734169971642,0.04921,101600.0,101590.0,0.942211]
[1734169971843,0.19632,101600.0,101590.0,0.51420391]
[1734169972035,0.29042,101600.0,101590.0,0.51420391]
[1734169972640,0.46692472,101600.0,101590.0,0.51420391]
[1734169973555,0.29042,101600.0,101590.0,0.51420391]
[1734169974146,0.29042,101600.0,101590.0,0.47113389]
[1734169977855,0.29042,101600.0,101590.0,0.51420616]
[1734169982253,0.22672,101600.0,101590.0,0.51420616]
[1734169982465,0.34449091,101600.0,101590.0,0.54670616]
[1734169982664,0.31409091,101600.0,101590.0,0.54670616]
[1734169982966,0.31409091,101600.0,101590.0,0.58000616]
[1734169983259,0.31409091,101600.0,101590.0,2.08000616]
[1734169985061,0.19632,101600.0,101590.0,2.08000616]
[1734169985265,0.19632,101600.0,101590.0,0.46967227]
[1734169985565,0.19632,101600.0,101590.0,0.13669516]
[1734169985762,0.22952,101600.0,101590.0,0.10419516]
[1734169986064,0.26202,101600.0,101590.0,0.10419516]
[1734169986950,0.43852472,101600.0,101590.0,0.15340916]
[1734169987150,0.40602472,101600.0,101590.0,0.15340916]
[1734169987570,0.37282472,101600.0,101590.0,0.15340916]
[1734169987859,0.19632,101600.0,101590.0,0.57680916]
[1734169989163,0.19632,101600.0,101590.0,0.53373689]
[1734169990559,0.19632,101600.0,101590.0,0.17293689]
[1734169991466,0.19632,101600.0,101590.0,0.53373689]
[1734169993761,0.19632,101600.0,101590.0,0.17293689]
[1734169993960,0.19632,101600.0,101590.0,0.53373689]
[1734169994566,0.19632,101600.0,101590.0,0.57680674]
[1734169995070,0.19632,101600.0,101590.0,0.21600674]
[1734169995366,0.19632,101600.0,101590.0,0.57680674]
[1734169995764,0.14711,101600.0,101590.0,0.63792963]
[1734169995963,0.14711,101600.0,101590.0,1.13792963]
[1734169996364,0.26491357,101600.0,101590.0,1.13792963]
[1734169996571,0.14711,101600.0,101590.0,1.13792963]
[1734169997064,0.19632,101600.0,101590.0,1.13792963]
[1734169998270,0.19632,101600.0,101590.0,1.07680674]
[1734169998969,0.19632,101600.0,101590.0,0.71600674]
[1734170000468,0.19632,101600.0,101590.0,1.07680674]
[1734170001177,0.19632,101600.0,101590.0,0.71600674]
[1734170001772,0.19632,101600.0,101590.0,1.07680674]
[1734170001969,0.19632,101600.0,101590.0,0.71600674]
[1734170002476,0.37282472,101600.0,101590.0,0.71600674]
[1734170002665,0.19632,101600.0,101590.0,0.71600674]
[1734170003878,0.37282472,101600.0,101590.0,0.71600674]
[1734170004171,0.73362472,101600.0,101590.0,0.60419274]
[1734170004372,0.61811472,101600.0,101590.0,0.10419274]
[1734170004565,0.67923761,101600.0,101590.0,0.04306985]
[1734170004770,0.79424761,101600.0,101580.0,0.42192289]
[1734170005067,0.19647611,101590.0,101580.0,0.42192289]
[1734170005467,0.19647611,101590.0,101580.0,0.47114189]
[1734170005668,0.19647611,101590.0,101580.0,0.11034189]
[1734170009771,0.20639736,101590.0,101580.0,0.11034189]
[1734170010683,0.20639736,101590.0,101580.0,0.15341968]
[1734170013078,0.20639736,101590.0,101580.0,0.11034189]
[1734170016774,0.20639736,101590.0,101580.0,0.15341962]
[1734170018585,0.32400725,101590.0,101580.0,0.15341962]
[1734170019883,0.32400725,101590.0,101580.0,0.10420062]
[1734170020485,0.20639736,101590.0,101580.0,0.10420062]
[1734170031395,0.38290208,101590.0,101580.0,0.10420062]
[1734170033286,0.23563997,101590.0,101580.0,0.10420062]
[1734170033889,0.38289798,101590.0,101580.0,0.06112289]
[1734170034089,0.23563997,101590.0,101580.0,0.06112289]
[1734170036695,0.049219,101580.0,101570.0,0.5309]
[1734170036908,0.19655216,101580.0,101560.0,1.35768413]
[1734170037093,0.16708317,101570.0,101560.0,0.99674413]
[1734170037398,0.31441633,101570.0,101560.0,0.74922637]
[1734170037592,0.19655716,101570.0,101560.0,0.74922637]
[1734170037997,0.31436817,101570.0,101560.0,0.74872637]
[1734170038999,0.31436817,101570.0,101560.0,0.74922637]
[1734170039395,0.19655716,101570.0,101560.0,0.74922637]
[1734170040097,0.19655716,101570.0,101560.0,0.74872637]
[1734170040684,0.31430397,101570.0,101560.0,0.74872637]
[1734170040892,0.19655716,101570.0,101560.0,0.68760348]
[1734170041203,0.19655716,101570.0,101560.0,0.68810348]
[1734170041892,0.3142693,101570.0,101560.0,0.68810348]
[1734170042094,0.19655716,101570.0,101560.0,0.57725459]
[1734170042292,0.19655716,101570.0,101560.0,0.69950037]
[1734170042891,0.55735716,101570.0,101560.0,0.65642251]
[1734170043102,0.55735716,101570.0,101560.0,0.59579962]
[1734170043301,0.55735716,101570.0,101560.0,0.53467673]
[1734170043601,0.55735716,101570.0,101560.0,0.65692251]
[1734170044005,0.55735716,101570.0,101560.0,0.70001055]
[1734170045201,0.56733451,101570.0,101560.0,0.70001055]
[1734170045401,0.56733451,101570.0,101560.0,0.57776477]
[1734170045596,0.6284574,101570.0,101560.0,0.10618766]
[1734170045792,0.56733451,101570.0,101560.0,0.10618766]
[1734170046895,0.56733451,101570.0,101560.0,0.10618806]
[1734170048806,0.56733451,101570.0,101560.0,0.04506517]
[1734170048993,0.56733451,101570.0,101560.0,0.10618806]
[1734170049402,0.68489648,101570.0,101560.0,0.10618806]
[1734170051109,0.68489648,101570.0,101560.0,0.10568806]
[1734170056702,0.56733451,101570.0,101560.0,0.10568806]
[1734170056902,0.68486564,101570.0,101560.0,0.10568806]
[1734170057095,0.68486564,101570.0,101560.0,0.21603995]
[1734170058004,0.53753248,101570.0,101560.0,0.21603995]
[1734170058206,0.53753248,101570.0,101560.0,0.17295151]
[1734170058601,0.68486564,101570.0,101560.0,0.17295151]
[1734170060703,0.68486564,101570.0,101560.0,0.11182862]
[1734170061403,0.56733451,101570.0,101560.0,0.11182862]
[1734170062806,0.56733451,101570.0,101560.0,0.15491523]
[1734170063004,0.68494601,101570.0,101560.0,0.15491523]
[1734170063201,0.56733451,101570.0,101560.0,0.15491523]
[1734170064509,0.56733451,101570.0,101560.0,0.51571523]
[1734170064510,0.32420017,101570.0,101560.0,0.51571523]
[1734170064710,0.42388177,101580.0,101560.0,0.57683812]
[1734170065009,0.31423184,101580.0,101570.0,0.53574689]
[1734170065202,0.31423184,101580.0,101570.0,0.63995385]
[1734170065399,0.31423184,101580.0,101570.0,0.61063096]
[1734170065613,0.31423184,101580.0,101570.0,0.24983096]
[1734170065805,0.31423184,101580.0,101570.0,1.11063096]
[1734170069903,0.31423184,101580.0,101570.0,0.74983096]
[1734170070102,0.31423184,101580.0,101570.0,1.11063096]
[1734170070613,0.58882157,101580.0,101570.0,0.57508407]
[1734170070917,0.22755216,101580.0,101570.0,0.13620696]
[1734170071212,0.40405688,101580.0,101570.0,0.13620696]
[1734170071415,0.22755216,101580.0,101570.0,0.13620696]
[1734170072909,0.22755216,101580.0,101570.0,0.18543096]
[1734170073110,0.76485688,101580.0,101570.0,0.18543096]
[1734170075111,0.76485688,101580.0,101570.0,0.15343096]
[1734170075313,0.79705688,101580.0,101570.0,0.15343096]
[1734170080419,0.79705688,101580.0,101570.0,0.09230807]
[1734170080723,0.79705688,101580.0,101570.0,0.15343096]
[1734170081531,0.64972372,101580.0,101570.0,0.15343096]
[1734170082024,0.64972372,101580.0,101570.0,0.15343283]
[1734170083229,0.90717943,101580.0,101560.0,0.549227]
[1734170083424,0.6256013,101570.0,101560.0,0.11034989]
[1734170083614,0.14711182,101570.0,101560.0,0.11034989]
[1734170083816,0.19633582,101570.0,101560.0,0.17147278]
[1734170085118,0.31403318,101570.0,101560.0,0.17147278]
[1734170085519,0.19633582,101570.0,101560.0,0.17147278]
[1734170085921,0.3140393,101570.0,101560.0,0.21455789]
[1734170087923,0.3140393,101570.0,101560.0,0.57535789]
[1734170088320,0.19633582,101570.0,101560.0,0.57535789]
[1734170088521,0.31405654,101570.0,101560.0,0.57535789]
[1734170088723,0.16694472,101570.0,101560.0,0.57535789]
[1734170088936,0.16694472,101570.0,101560.0,1.07535789]
[1734170089231,0.16694472,101570.0,101560.0,1.0850894]
[1734170089927,0.20601811,101570.0,101560.0,1.0850894]
[1734170091226,0.20602071,101570.0,101560.0,1.0850894]
[1734170093927,0.20602071,101570.0,101560.0,1.04200429]
[1734170094530,0.20602071,101570.0,101560.0,0.68120429]
[1734170094727,0.20602071,101570.0,101560.0,1.40280429]
[1734170094927,0.11772072,101570.0,101560.0,1.40280429]
[1734170095228,0.20602783,101570.0,101560.0,1.40280429]
[1734170095432,0.2060279,101570.0,101560.0,1.40280429]
[1734170099827,0.2060279,101570.0,101560.0,1.4458894]
[1734170101225,0.2060279,101570.0,101560.0,1.40280429]
[1734170101428,0.08830718,101570.0,101560.0,1.44588377]
[1734170102225,0.2060279,101570.0,101560.0,1.50700666]
[1734170102425,0.08830718,101570.0,101560.0,1.50700666]
[1734170103435,0.2060279,101570.0,101560.0,1.44588377]
[1734170106829,0.08830718,101570.0,101560.0,1.44588377]
[1734170107334,0.2060279,101570.0,101560.0,1.44588377]
[1734170107633,0.08830718,101570.0,101560.0,1.44588377]
[1734170110425,0.08830718,101570.0,101560.0,1.85872517]
[1734170112029,0.08830718,101570.0,101560.0,1.79760228]
[1734170112632,0.08830718,101570.0,101560.0,1.6753565]
[1734170112833,0.08830718,101570.0,101560.0,1.79760228]
[1734170114229,0.08830718,101570.0,101560.0,2.09032656]
[1734170114428,0.03292103,101570.0,101560.0,2.09032656]
[1734170115035,0.03292103,101570.0,101560.0,1.85872517]
[1734170115235,0.03292103,101570.0,101560.0,1.6753565]
[1734170115534,0.03292103,101570.0,101560.0,1.85872517]
[1734170115737,0.03292103,101570.0,101560.0,1.79760228]
[1734170116437,0.03292103,101570.0,101560.0,2.03275068]
[1734170118232,0.15064175,101570.0,101560.0,2.03275068]
[1734170120841,0.15064175,101570.0,101560.0,2.09387357]
[1734170123536,0.15064175,101570.0,101560.0,1.85872517]
[1734170123740,0.15064175,101570.0,101560.0,2.09369907]
[1734170124938,0.03292103,101570.0,101560.0,2.09369907]
[1734170125343,0.15064175,101570.0,101560.0,2.09369907]
[1734170125736,0.15064175,101570.0,101560.0,2.11366017]
[1734170127547,0.15064175,101570.0,101560.0,1.87868627]
[1734170127850,0.03292103,101570.0,101560.0,2.11408876]
[1734170128147,0.03292103,101570.0,101560.0,3.61408876]
[1734170128740,0.15064175,101570.0,101560.0,3.61408876]
[1734170129251,0.03292103,101570.0,101560.0,3.61408876]
[1734170129450,0.15064175,101570.0,101560.0,3.61408876]
[1734170130746,0.03292103,101570.0,101560.0,3.61408876]
[1734170131244,0.15064175,101570.0,101560.0,3.61408876]
[1734170133443,0.15064175,101570.0,101560.0,3.61417066]
[1734170133643,0.03292103,101570.0,101560.0,3.61417066]
[1734170133850,0.15064175,101570.0,101560.0,3.61417066]
[1734170134250,0.03292103,101570.0,101560.0,3.61417066]
[1734170134552,0.03292103,101570.0,101560.0,3.26245215]
[1734170134749,0.03292103,101570.0,101560.0,3.61678861]
[1734170135039,0.03292103,101570.0,101560.0,3.61678952]
[1734170135254,0.03292103,101570.0,101560.0,3.61679853]
[1734170135645,0.03292103,101570.0,101560.0,3.26245215]
[1734170136852,0.03292103,101570.0,101560.0,3.61679766]
[1734170137052,0.03292103,101570.0,101560.0,3.61679831]
[1734170137355,0.03292103,101570.0,101560.0,3.26245215]
[1734170137756,0.03292103,101570.0,101560.0,3.26202355]
[1734170138453,0.14962072,101580.0,101570.0,0.049224]
[1734170138454,0.11772072,101580.0,101570.0,0.049224]
[1734170138752,0.26483254,101590.0,101580.0,0.549219]
[1734170139058,0.26495916,101590.0,101580.0,2.80947212]
[1734170139257,0.26545916,101590.0,101580.0,3.16379277]
[1734170139458,0.26545916,101590.0,101580.0,2.80947212]
[1734170140151,0.26495916,101590.0,101580.0,2.80947212]
[1734170141057,0.11784734,101590.0,101580.0,2.74834923]
[1734170141255,0.11834734,101590.0,101580.0,2.80947212]
[1734170142259,0.11784734,101590.0,101580.0,2.80947212]
[1734170142662,0.26495916,101590.0,101580.0,2.80947212]
[1734170143055,0.11784734,101590.0,101580.0,2.80947212]
[1734170143354,0.11834734,101590.0,101580.0,2.9317179]
[1734170143553,0.0005,101590.0,101580.0,3.28603855]
[1734170144360,0.37278662,101600.0,101590.0,0.049214]
[1734170144559,0.37278662,101600.0,101590.0,0.53225978]
[1734170144860,0.37278662,101600.0,101590.0,0.57533926]
[1734170144861,0.2256748,101600.0,101590.0,0.57533926]
[1734170145055,0.2256748,101600.0,101590.0,1.07533926]
[1734170147262,0.2256748,101600.0,101590.0,1.03225978]
[1734170149254,0.2261748,101600.0,101590.0,1.03225978]
[1734170152154,0.21622424,101600.0,101590.0,1.03225978]
[1734170155860,0.21622424,101600.0,101590.0,1.07532929]
[1734170158564,0.21622424,101600.0,101590.0,1.03225978]
[1734170158865,0.21622424,101600.0,101590.0,1.07532792]
[1734170159263,0.21572424,101600.0,101590.0,1.07532792]
[1734170160059,0.15062424,101600.0,101590.0,1.07532792]
[1734170160259,0.15062424,101600.0,101590.0,1.10772792]
[1734170160461,0.0327769,101600.0,101590.0,1.40297867]
[1734170160967,0.0327769,101600.0,101590.0,1.10772792]
[1734170161162,0.0327769,101600.0,101590.0,1.40297867]
[1734170162168,0.0327769,101600.0,101590.0,1.04217867]
[1734170162669,0.0327769,101600.0,101590.0,1.76377867]
[1734170163864,0.0327769,101600.0,101590.0,1.04217867]
[1734170164076,0.0327769,101600.0,101590.0,1.76377867]
[1734170164265,0.15062424,101600.0,101590.0,1.76377867]
[1734170169369,0.15062424,101600.0,101590.0,1.07477867]
[1734170169565,0.15062424,101600.0,101590.0,1.79637867]
[1734170170868,0.15062424,101600.0,101590.0,1.43557867]
[1734170173265,0.15062424,101600.0,101590.0,1.79637867]
[1734170175574,0.11932424,101600.0,101590.0,1.79637867]
[1734170177070,0.11932424,101600.0,101590.0,1.75331053]
[1734170177576,0.11932424,101600.0,101590.0,3.29637934]
[1734170177780,0.26643606,101600.0,101590.0,3.25331053]
[1734170177978,0.11932424,101600.0,101590.0,3.29637871]
[1734170178380,0.11932424,101600.0,101590.0,3.13106475]
[1734170178577,0.11932424,101600.0,101590.0,3.29637993]
[1734170178981,0.11932424,101600.0,101590.0,3.25331053]
[1734170179281,0.11932424,101600.0,101590.0,3.2963796]
[1734170179677,0.26642412,101600.0,101590.0,3.29637909]
[1734170179875,0.14858872,101600.0,101590.0,3.25331053]
[1734170180076,0.11931218,101600.0,101590.0,3.29638004]
[1734170180275,0.266424,101600.0,101590.0,3.14153426]
[1734170180581,0.73510344,101600.0,101590.0,0.10419533]
[1734170180881,0.5078869,101600.0,101590.0,0.10419533]
[1734170181075,0.71380907,101600.0,101590.0,0.10419533]
[1734170181275,0.5078869,101600.0,101590.0,0.10419533]
[1734170181474,0.68452164,101600.0,101590.0,0.10419533]
[1734170181677,0.68452164,101600.0,101590.0,0.11033789]
[1734170182073,0.68452164,101600.0,101590.0,0.15341393]
[1734170182276,0.68452164,101600.0,101590.0,0.11033789]
[1734170185987,0.83158499,101600.0,101590.0,0.11033789]
[1734170186183,0.68452164,101600.0,101590.0,0.11033789]
[1734170186588,0.83156518,101600.0,101590.0,0.11033789]
[1734170188586,0.68452164,101600.0,101590.0,0.11033789]
[1734170188788,0.83153853,101600.0,101590.0,0.11033789]
[1734170191785,0.65490379,101600.0,101590.0,0.11033789]
[1734170192191,0.83153853,101600.0,101590.0,0.11033789]
[1734170193787,0.83153853,101600.0,101590.0,0.049215]
[1734170194097,0.83153853,101600.0,101590.0,0.11033789]
[1734170194588,0.65490379,101600.0,101590.0,0.11033789]
[1734170194790,0.83153853,101600.0,101590.0,0.11033789]
[1734170194992,0.65490379,101600.0,101590.0,0.11033789]
[1734170197495,0.83153853,101600.0,101590.0,0.11033789]
[1734170197695,0.65490379,101600.0,101590.0,0.11033789]
[1734170198290,0.47073853,101600.0,101590.0,0.11033789]
[1734170198496,0.29410379,101600.0,101590.0,0.11033789]
[1734170200902,0.65490379,101600.0,101590.0,0.11033789]
[1734170201198,0.29410379,101600.0,101590.0,0.11033789]
[1734170207699,0.29410379,101600.0,101590.0,0.47113789]
[1734170208997,0.29410379,101600.0,101590.0,0.11033789]
[1734170209203,0.26250379,101600.0,101590.0,0.47113789]
[1734170209407,0.22990379,101600.0,101590.0,0.47113789]
[1734170212809,0.19770379,101600.0,101590.0,1.03226078]
[1734170213103,0.19770379,101600.0,101590.0,1.00393789]
[1734170213706,0.19770379,101600.0,101590.0,0.64313789]
[1734170213907,0.19770379,101600.0,101590.0,1.00393789]
[1734170214106,0.19770379,101600.0,101590.0,1.04701005]
[1734170219013,0.19770379,101600.0,101590.0,1.05666462]
[1734170220315,0.19770379,101600.0,101590.0,0.8608]
[1734170220514,0.049215,101590.0,101580.0,0.82959264]
[1734170220708,0.1964431,101590.0,101580.0,0.54624578]
[1734170221310,0.1964431,101590.0,101580.0,0.59546478]
[1734170221517,0.1964431,101590.0,101580.0,0.23466478]
[1734170228015,0.20653207,101590.0,101580.0,0.23466478]
[1734170234724,0.20653207,101590.0,101580.0,0.59546478]
[1734170236420,0.20653207,101590.0,101580.0,0.23466478]
[1734170240230,0.20653207,101590.0,101580.0,0.20336478]
[1734170241226,0.20653207,101590.0,101580.0,0.14224189]
[1734170242734,0.20653207,101590.0,101580.0,0.18531785]
[1734170242930,0.20653207,101590.0,101580.0,0.20336478]
[1734170247025,0.20653207,101590.0,101580.0,0.081119]
[1734170247240,0.20653207,101590.0,101580.0,0.14224189]
[1734170248441,0.20653207,101590.0,101580.0,0.09302289]
[1734170248637,0.20653207,101590.0,101580.0,0.13610004]
[1734170248936,0.049219,101580.0,101570.0,0.06112289]
[1734170249139,0.38684048,101580.0,101570.0,0.10420516]
[1734170249332,0.33897572,101580.0,101570.0,0.06112289]
[1734170249538,0.69977572,101580.0,101570.0,0.10420664]
[1734170249733,0.69977572,101580.0,101570.0,0.06112289]
[1734170250441,0.33897572,101580.0,101570.0,0.06112289]
[1734170250639,0.48614053,101580.0,101570.0,0.06112289]
[1734170250938,0.67020381,101580.0,101570.0,0.06112289]
[1734170251244,0.84694053,101580.0,101570.0,0.06112289]
[1734170251630,0.69977572,101580.0,101570.0,0.06112289]
[1734170252035,0.049224,101570.0,101560.0,0.549726]
[1734170252235,0.31417037,101570.0,101560.0,1.03277178]
[1734170252436,0.16697794,101570.0,101560.0,1.0753556]
[1734170253343,0.16697794,101570.0,101560.0,1.0758556]
[1734170254431,0.16697794,101570.0,101560.0,1.0753556]
[1734170255344,0.16697794,101570.0,101560.0,1.0758556]
[1734170256545,0.16697794,101570.0,101560.0,1.0753556]
[1734170257341,0.16697794,101570.0,101560.0,1.0758556]
[1734170258341,0.25522982,101570.0,101560.0,1.0753556]
[1734170259436,0.25522982,101570.0,101560.0,1.0758556]
[1734170260442,0.25522982,101570.0,101560.0,1.0753556]
[1734170261347,0.25522982,101570.0,101560.0,1.0758556]
[1734170263549,0.25522982,101570.0,101560.0,1.0753556]
[1734170265646,0.16697794,101570.0,101560.0,1.03227178]
[1734170266550,0.16697794,101570.0,101560.0,0.910026]
[1734170266750,0.16697794,101570.0,101560.0,1.03227178]
[1734170269747,0.16697794,101570.0,101560.0,0.67147178]
[1734170269954,0.16697794,101570.0,101560.0,1.03227178]
[1734170271948,0.11775394,101570.0,101560.0,1.03227178]
[1734170272850,0.11775394,101570.0,101560.0,0.67147178]
[1734170273050,0.11775394,101570.0,101560.0,1.03227178]
[1734170273860,0.2060723,101570.0,101560.0,1.37060635]
[1734170275550,0.11775394,101570.0,101560.0,1.37060635]
[1734170278552,0.26494637,101570.0,101560.0,1.37060635]
[1734170279660,0.11775394,101570.0,101560.0,1.42967625]
[1734170280162,0.11775394,101570.0,101560.0,1.72497156]
[1734170281261,0.26494637,101570.0,101560.0,1.72497975]
[1734170281461,0.11775394,101570.0,101560.0,1.72497975]
[1734170281663,0.11775394,101570.0,101560.0,1.42967625]
[1734170281864,0.11775394,101570.0,101560.0,1.72496314]
[1734170282259,0.11775394,101570.0,101560.0,1.42967625]
[1734170282661,0.11775394,101570.0,101560.0,1.7249578]
[1734170282857,0.11775394,101570.0,101560.0,1.42967625]
[1734170283062,0.11775394,101570.0,101560.0,1.72496121]
[1734170283656,0.11775394,101570.0,101560.0,1.42967625]
[1734170283856,0.11775394,101570.0,101560.0,1.72495835]
[1734170289560,0.11775394,101570.0,101560.0,1.78608124]